[Event "2nd Hersonissos Open 2018"]
[Site "Hersonissos"]
[Date "2018.06.23"]
[Round "8"]
[White "Maris, Ioannis"]
[Black "Saklampanakis, Dimitrios"]
[Result "1-0"]
[ECO "C54"]
[WhiteElo "1915"]
[BlackElo "1319"]
[Annotator "NA"]
[PlyCount "61"]
[EventDate "2018.06.23"]
[EventType "swiss"]
[EventCountry "GRE"]
[SourceTitle "playchess.com"]
[Source "ChessBase"]
[SourceQuality "1"]
[TimeControl "5400+30"]

1. e4 {[%emt 0:00:00]} e5 {[%emt 0:00:10]} 2. Nf3 {[%emt 0:00:00]} Nc6 {[%emt 0:00:06]} 3. Bc4 {[%emt 0:00:20]} Bc5 {[%emt 0:00:17]} 4. c3 {[%emt 0:00:25]} Nf6 {[%emt 0:00:06]} 5. d4 {[%emt 0:05:02]} exd4 {[%emt 0:04:59]} 6. O-O {[%emt 0:01:36]} Nxe4 {[%emt 0:12:55]} 7. cxd4 {[%emt 0:01:10]} Bb6 {[%emt 0:04:44]} 8. d5 {[%emt 0:01:03]} Ne7 {[%emt 0:07:51]} 9. Qe2 {[%emt 0:05:41]} Nf6 {[%emt 0:02:42]} 10. Bg5 {[%emt 0:04:35]} d6 {[%emt 0:11:11]} 11. Re1 Bf5 {[%emt 0:15:46]} 12. Nc3 {[%emt 0:11:15]} a6 {[%emt 0:02:51]} 13. Bxf6 {[%emt 0:02:05]} gxf6 {[%emt 0:05:51]} 14. Ne4 {[%emt 0:01:44]} Bxe4 {[%emt 0:04:02]} 15. Qxe4 {[%emt 0:00:38]} Qd7 {[%emt 0:08:41]} 16. Nh4 {[%emt 0:06:09]} Kd8 {[%emt 0:02:18]} 17. Qf4 {[%emt 0:03:42]} f5 {[%emt 0:12:15]} 18. Bb3 {[%emt 0:01:19]} Rg8 {[%emt 0:00:39]} 19. h3 {[%emt 0:02:53]} Re8 {[%emt 0:02:01]} 20. Rad1 {[%emt 0:08:29]} Ng6 {[%emt 0:00:30]} 21. Qg5+ {[%emt 0:00:19]} Kc8 {[%emt 0:00:28]} 22. Qxf5 {[%emt 0:09:44]} Qxf5 {[%emt 0:00:36]} 23. Nxf5 {[%emt 0:00:19]} Rxe1+ {[%emt 0:00:04]} 24. Rxe1 {[%emt 0:00:12]} Kd7 {[%emt 0:00:26]} 25. Ba4+ {[%emt 0:00:16]} c6 {[%emt 0:00:54]} 26. dxc6+ {[%emt 0:00:35]} bxc6 {[%emt 0:00:14]} 27. h4 {[%emt 0:00:59]} Bc5 {[%emt 0:00:38]} 28. a3 {[%emt 0:00:40]} a5 {[%emt 0:00:40]} 29. Kf1 {[%emt 0:00:56]} Rb8 {[%emt 0:00:22]} 30. Re2 {[%emt 0:00:21]} Ne5 {[%emt 0:00:40]} 31. f4 {[%emt 0:00:52]} 1-0

[Event "2nd Hersonissos Open 2018"]
[Site "Hersonissos"]
[Date "2018.06.23"]
[Round "8"]
[White "Bras, Emanouel"]
[Black "Mateev, Kaloyan Mateev"]
[Result "0-1"]
[ECO "A46"]
[WhiteElo "1859"]
[BlackElo "1539"]
[Annotator "NA"]
[PlyCount "106"]
[EventDate "2018.06.23"]
[EventType "swiss"]
[EventCountry "GRE"]
[SourceTitle "playchess.com"]
[Source "ChessBase"]
[SourceQuality "1"]
[TimeControl "5400+30"]

1. d4 {[%emt 0:00:00]} Nf6 {[%emt 0:05:30]} 2. Nf3 {[%emt 0:00:00]} d6 {[%emt 0:00:10]} 3. Bf4 {[%emt 0:00:35]} Bf5 {[%emt 0:00:38]} 4. c3 {[%emt 0:01:08]} Nbd7 {[%emt 0:01:12]} 5. Nbd2 {[%emt 0:01:23]} e6 {[%emt 0:01:51]} 6. e3 {[%emt 0:01:50]} a6 {[%emt 0:03:03]} 7. h3 {[%emt 0:00:28]} h6 {[%emt 0:00:57]} 8. Be2 {[%emt 0:00:38]} g5 {[%emt 0:01:22]} 9. Bg3 {[%emt 0:01:49]} Bg7 {[%emt 0:03:31]} 10. O-O {[%emt 0:05:04]} O-O {[%emt 0:04:05]} 11. Ne1 {[%emt 0:01:37]} Ne4 {[%emt 0:01:48]} 12. Nxe4 {[%emt 0:00:32]} Bxe4 {[%emt 0:00:03]} 13. Nd3 {[%emt 0:02:19]} b6 {[%emt 0:06:54]} 14. f3 {[%emt 0:01:37]} Bb7 {[%emt 0:01:53]} 15. Nf2 {[%emt 0:01:36]} f5 {[%emt 0:00:29]} 16. Bc4 {[%emt 0:02:33]} d5 {[%emt 0:03:59]} 17. Bb3 {[%emt 0:00:34]} Nf6 {[%emt 0:10:08]} 18. Nd3 {[%emt 0:03:56]} Qe7 {[%emt 0:05:25]} 19. Be5 {[%emt 0:02:35]} c5 {[%emt 0:05:37]} 20. Bc2 {[%emt 0:01:35]} Nd7 {[%emt 0:00:43]} 21. Bxg7 {[%emt 0:04:58]} Qxg7 {[%emt 0:00:12]} 22. f4 {[%emt 0:02:04]} a5 {[%emt 0:03:54]} 23. Ba4 {[%emt 0:03:01]} Nf6 {[%emt 0:06:59]} 24. dxc5 {[%emt 0:01:32]} g4 {[%emt 0:03:18]} 25. h4 {[%emt 0:09:13]} Ne4 {[%emt 0:01:27]} 26. cxb6 {[%emt 0:01:34]} Ba6 {[%emt 0:03:45]} 27. Ne5 {[%emt 0:02:35]} Qf6 {[%emt 0:04:36]} 28. Qe1 {[%emt 0:06:11]} g3 {[%emt 0:00:30]} 29. Nf3 {[%emt 0:11:24]} Rab8 {[%emt 0:00:13]} 30. Bc2 {[%emt 0:06:55]} Rf7 {[%emt 0:04:09]} 31. Bxe4 {[%emt 0:07:40]} dxe4 {[%emt 0:00:44]} 32. Qxg3+ {[%emt 0:01:07]} Rg7 {[%emt 0:00:08]} 33. Ng5 {[%emt 0:01:19]} Bxf1 {[%emt 0:00:19]} 34. Rxf1 {[%emt 0:00:50]} hxg5 {[%emt 0:00:18]} 35. fxg5 {[%emt 0:00:19]} Qd8 {[%emt 0:00:19]} 36. g6 {[%emt 0:03:26]} Rxb6 {[%emt 0:00:29]} 37. h5 {[%emt 0:00:23]} Qf6 {[%emt 0:05:49]} 38. Rf2 {[%emt 0:01:06]} e5 {[%emt 0:00:32]} 39. Qh3 {[%emt 0:00:40]} Rd6 {[%emt 0:11:39]} 40. Rxf5 {[%emt 0:00:00]} Qe6 {[%emt 0:00:00]} 41. Rxe5 {[%emt 0:00:00]} Rd1+ {[%emt 0:00:00]} 42. Kf2 {[%emt 0:00:00]} Qf6+ {[%emt 0:00:00]} 43. Rf5 {[%emt 0:00:00]} Qd8 44. Rb5 {[%emt 0:00:00]} Qd2+ {[%emt 0:00:00]} 45. Kg3 {[%emt 0:00:00]} Qxe3+ {[%emt 0:00:00]} 46. Kh4 {[%emt 0:00:00]} Qxh3+ {[%emt 0:00:00]} 47. gxh3 {[%emt 0:00:00]} Re7 {[%emt 0:00:00]} 48. Kg5 {[%emt 0:00:00]} Rd8 {[%emt 0:00:00]} 49. h6 {[%emt 0:00:00]} e3 {[%emt 0:00:00]} 50. Kf6 {[%emt 0:03:20]} Rde8 {[%emt 0:00:00]} 51. h7+ {[%emt 0:04:59]} Kh8 {[%emt 0:00:00]} 52. Rb8 {[%emt 0:00:56]} Rxb8 {[%emt 0:00:00]} 53. Kxe7 {[%emt 0:00:11]} Kg7 {[%emt 0:00:00]} 0-1

[Event "2nd Hersonissos Open 2018"]
[Site "Hersonissos"]
[Date "2018.06.23"]
[Round "8"]
[White "Warnk, Torsten"]
[Black "Koutsourakis, Ioannis"]
[Result "1/2-1/2"]
[ECO "D02"]
[WhiteElo "1853"]
[BlackElo "1560"]
[Annotator "NA"]
[PlyCount "119"]
[EventDate "2018.06.23"]
[EventType "swiss"]
[EventCountry "GRE"]
[SourceTitle "playchess.com"]
[Source "ChessBase"]
[SourceQuality "1"]
[TimeControl "5400+30"]

1. d4 {[%emt 0:04:04]} d5 {[%emt 0:00:10]} 2. Nf3 {[%emt 0:00:13]} Nf6 {[%emt 0:00:04]} 3. Bf4 {[%emt 0:00:26]} c5 {[%emt 0:00:28]} 4. e3 {[%emt 0:00:30]} e6 {[%emt 0:00:05]} 5. c4 {[%emt 0:00:09]} Nc6 {[%emt 0:11:08]} 6. Nc3 {[%emt 0:00:19]} a6 {[%emt 0:05:41]} 7. Be2 {[%emt 0:01:52]} dxc4 {[%emt 0:03:18]} 8. dxc5 {[%emt 0:01:19]} Qxd1+ {[%emt 0:06:02]} 9. Rxd1 {[%emt 0:00:07]} Bxc5 {[%emt 0:00:04]} 10. Bxc4 {[%emt 0:00:45]} b5 {[%emt 0:01:58]} 11. Be2 {[%emt 0:05:42]} Bb7 {[%emt 0:02:21]} 12. O-O {[%emt 0:00:34]} O-O {[%emt 0:01:25]} 13. Rc1 {[%emt 0:02:09]} Bb6 {[%emt 0:02:35]} 14. Ne5 {[%emt 0:06:52]} Nxe5 {[%emt 0:02:10]} 15. Bxe5 {[%emt 0:05:58]} Nd5 {[%emt 0:00:30]} 16. Nxd5 {[%emt 0:09:23]} Bxd5 {[%emt 0:00:18]} 17. a3 {[%emt 0:01:30]} Rac8 {[%emt 0:01:44]} 18. a4 {[%emt 0:00:34]} Rxc1 {[%emt 0:14:33]} 19. Rxc1 {[%emt 0:00:02]} bxa4 {[%emt 0:00:09]} 20. Bxa6 {[%emt 0:00:24]} f6 {[%emt 0:04:03]} 21. Bd6 {[%emt 0:02:47]} Rd8 {[%emt 0:05:41]} 22. Ba3 Kf7 {[%emt 0:08:24]} 23. Rc8 {[%emt 0:08:30]} Rxc8 {[%emt 0:02:08]} 24. Bxc8 {[%emt 0:00:04]} Ke8 {[%emt 0:00:31]} 25. Ba6 {[%emt 0:00:41]} Kd8 {[%emt 0:05:27]} 26. Bb5 Bb3 {[%emt 0:00:05]} 27. Kf1 {[%emt 0:01:13]} Kc8 {[%emt 0:05:43]} 28. Ke2 {[%emt 0:00:15]} Kb7 {[%emt 0:00:36]} 29. Kd3 {[%emt 0:00:20]} Bc7 {[%emt 0:01:06]} 30. h3 {[%emt 0:00:18]} Kb6 {[%emt 0:03:15]} 31. Be8 {[%emt 0:06:21]} e5 {[%emt 0:01:30]} 32. Kc3 {[%emt 0:00:50]} Ka5 {[%emt 0:00:31]} 33. Bb4+ {[%emt 0:00:20]} Ka6 {[%emt 0:00:37]} 34. Bh5 {[%emt 0:10:17]} Kb6 {[%emt 0:05:03]} 35. Be2 {[%emt 0:01:48]} Bd8 {[%emt 0:04:07]} 36. Bf8 {[%emt 0:01:13]} g6 {[%emt 0:01:46]} 37. Kb4 {[%emt 0:01:52]} Bd5 {[%emt 0:00:46]} 38. g3 {[%emt 0:00:24]} Bc6 {[%emt 0:00:31]} 39. Bd1 {[%emt 0:00:24]} Ka6 {[%emt 0:02:36]} 40. Ka3 {[%emt 0:00:00]} Bd7 {[%emt 0:00:00]} 41. h4 {[%emt 0:00:00]} g5 {[%emt 0:00:00]} 42. h5 {[%emt 0:00:00]} f5 {[%emt 0:00:00]} 43. Bxa4 {[%emt 0:00:00]} Be6 {[%emt 0:00:00]} 44. Bb3 {[%emt 0:00:00]} Bxb3 {[%emt 0:00:00]} 45. Kxb3 {[%emt 0:00:00]} Kb5 {[%emt 0:00:00]} 46. Bg7 {[%emt 0:00:00]} e4 {[%emt 0:00:00]} 47. Kc3 {[%emt 0:00:00]} Bb6 {[%emt 0:00:00]} 48. b4 {[%emt 0:00:00]} g4 {[%emt 0:00:00]} 49. Bd4 {[%emt 0:00:00]} Bd8 {[%emt 0:00:00]} 50. Bg7 {[%emt 0:04:16]} Bb6 {[%emt 0:00:00]} 51. Bf8 {[%emt 0:04:23]} Ba7 {[%emt 0:00:00]} 52. Bc5 {[%emt 0:00:53]} Bxc5 {[%emt 0:00:00]} 53. bxc5 {[%emt 0:00:02]} Kxc5 {[%emt 0:00:00]} 54. h6 {[%emt 0:00:13]} Kd5 {[%emt 0:00:00]} 55. Kb4 {[%emt 0:00:10]} Kd6 {[%emt 0:00:00]} 56. Kc4 {[%emt 0:05:34]} Kc6 {[%emt 0:00:00]} 57. Kd4 {[%emt 0:01:01]} Kd6 {[%emt 0:00:00]} 58. Kc4 {[%emt 0:00:50]} Kc6 {[%emt 0:00:00]} 59. Kb4 {[%emt 0:00:22]} Kb6 {[%emt 0:00:00]} 60. Kc4 1/2-1/2

[Event "2nd Hersonissos Open 2018"]
[Site "Hersonissos"]
[Date "2018.06.23"]
[Round "8"]
[White "Storkebaum, Ulrike"]
[Black "Sielicki, Tomasz"]
[Result "0-1"]
[ECO "C44"]
[WhiteElo "1825"]
[BlackElo "1963"]
[Annotator "NA"]
[PlyCount "40"]
[EventDate "2018.06.23"]
[EventType "swiss"]
[EventCountry "GRE"]
[SourceTitle "playchess.com"]
[Source "ChessBase"]
[SourceQuality "1"]
[TimeControl "5400+30"]

1. e4 {[%emt 0:01:12]} e5 {[%emt 0:00:11]} 2. Nf3 {[%emt 0:00:08]} Nc6 {[%emt 0:00:10]} 3. d4 {[%emt 0:00:23]} exd4 {[%emt 0:00:09]} 4. Nxd4 {[%emt 0:00:04]} Bb4+ {[%emt 0:00:17]} 5. Nc3 {[%emt 0:05:30]} Qe7 {[%emt 0:00:32]} 6. Ndb5 {[%emt 0:06:43]} d5 {[%emt 0:01:55]} 7. Bd2 {[%emt 0:21:22]} Nf6 {[%emt 0:13:55]} 8. Qe2 {[%emt 0:11:50]} dxe4 {[%emt 0:10:40]} 9. a3 {[%emt 0:01:01]} Ba5 {[%emt 0:01:08]} 10. Na2 {[%emt 0:09:11]} Bg4 {[%emt 0:07:37]} 11. Qe3 {[%emt 0:04:01]} Nd5 {[%emt 0:06:01]} 12. Qg3 {[%emt 0:02:53]} Bxd2+ {[%emt 0:08:17]} 13. Kxd2 {[%emt 0:00:32]} Rd8 {[%emt 0:06:14]} 14. Ke1 {[%emt 0:09:54]} Ne5 {[%emt 0:06:47]} 15. h3 {[%emt 0:02:44]} Nf3+ {[%emt 0:07:59]} 16. Ke2 {[%emt 0:05:35]} Nd4+ {[%emt 0:01:59]} 17. Kd2 {[%emt 0:03:14]} Qg5+ {[%emt 0:01:17]} 18. f4 {[%emt 0:02:21]} exf3+ {[%emt 0:00:11]} 19. Kd1 {[%emt 0:05:02]} fxg2+ {[%emt 0:06:08]} 20. hxg4 {[%emt 0:01:12]} gxh1=Q {[%emt 0:01:10]} 0-1

[Event "2nd Hersonissos Open 2018"]
[Site "Hersonissos"]
[Date "2018.06.23"]
[Round "8"]
[White "Kotsinis, Alexandros"]
[Black "Iminov, Bachtiar"]
[Result "0-1"]
[ECO "E81"]
[WhiteElo "1655"]
[BlackElo "1842"]
[Annotator "NA"]
[PlyCount "86"]
[EventDate "2018.06.23"]
[EventType "swiss"]
[EventCountry "GRE"]
[SourceTitle "playchess.com"]
[Source "ChessBase"]
[SourceQuality "1"]
[TimeControl "5400+30"]

1. d4 {[%emt 0:00:00]} Nf6 {[%emt 0:05:10]} 2. c4 {[%emt 0:00:14]} g6 {[%emt 0:00:53]} 3. Nc3 {[%emt 0:00:07]} Bg7 {[%emt 0:00:04]} 4. e4 {[%emt 0:00:52]} d6 {[%emt 0:00:05]} 5. f3 {[%emt 0:00:06]} O-O {[%emt 0:00:12]} 6. Be3 {[%emt 0:00:08]} a6 {[%emt 0:00:58]} 7. Nge2 {[%emt 0:00:19]} Nbd7 {[%emt 0:01:37]} 8. Qd2 {[%emt 0:00:35]} c5 {[%emt 0:01:06]} 9. Nf4 {[%emt 0:04:20]} cxd4 {[%emt 0:01:07]} 10. Qxd4 {[%emt 0:00:46]} e5 {[%emt 0:00:35]} 11. Qxd6 {[%emt 0:00:05]} exf4 {[%emt 0:00:05]} 12. Bxf4 {[%emt 0:00:52]} Nh5 {[%emt 0:02:14]} 13. Be3 {[%emt 0:02:03]} Qf6 {[%emt 0:01:05]} 14. Qd2 {[%emt 0:04:17]} Qc6 {[%emt 0:08:30]} 15. Rd1 {[%emt 0:04:26]} Ne5 {[%emt 0:01:19]} 16. Nd5 {[%emt 0:00:31]} Re8 {[%emt 0:01:14]} 17. Be2 {[%emt 0:10:29]} Be6 {[%emt 0:09:14]} 18. O-O {[%emt 0:00:53]} Nxc4 {[%emt 0:13:54]} 19. Bxc4 {[%emt 0:00:46]} Qxc4 {[%emt 0:03:12]} 20. Nb6 {[%emt 0:00:08]} Qxa2 {[%emt 0:00:35]} 21. Nxa8 {[%emt 0:00:07]} Rxa8 {[%emt 0:00:09]} 22. g4 {[%emt 0:22:05]} Nf6 {[%emt 0:00:40]} 23. Qd8+ {[%emt 0:01:24]} Rxd8 {[%emt 0:00:12]} 24. Rxd8+ {[%emt 0:00:01]} Bf8 {[%emt 0:00:12]} 25. Bh6 {[%emt 0:00:04]} Nd7 {[%emt 0:00:13]} 26. Rd1 {[%emt 0:00:04]} Qxb2 {[%emt 0:01:48]} 27. R1xd7 {[%emt 0:00:09]} Qb1+ {[%emt 0:00:48]} 28. Kg2 {[%emt 0:00:30]} Qb2+ {[%emt 0:00:18]} 29. Kg1 {[%emt 0:04:21]} Qb1+ {[%emt 0:00:41]} 30. Kg2 {[%emt 0:00:13]} Qb2+ {[%emt 0:00:04]} 31. Kh3 {[%emt 0:02:56]} Qa3 {[%emt 0:00:31]} 32. Rd3 {[%emt 0:01:14]} Qc5 {[%emt 0:01:04]} 33. Rb8 {[%emt 0:11:43]} Qh5+ {[%emt 0:00:13]} 34. Kg3 {[%emt 0:01:08]} Qxh6 {[%emt 0:00:17]} 35. Rdd8 {[%emt 0:00:23]} b5 {[%emt 0:00:53]} 36. e5 {[%emt 0:01:13]} Qg7 {[%emt 0:00:25]} 37. f4 {[%emt 0:00:08]} Bc4 {[%emt 0:03:15]} 38. Ra8 {[%emt 0:05:06]} f6 {[%emt 0:00:40]} 39. Re8 {[%emt 0:01:00]} fxe5 {[%emt 0:00:42]} 40. Rxe5 {[%emt 0:00:00]} Qf6 {[%emt 0:00:00]} 41. g5 {[%emt 0:00:00]} Qd6 {[%emt 0:00:00]} 42. Ree8 {[%emt 0:00:00]} Qa3+ {[%emt 0:00:00]} 43. Kh4 {[%emt 0:00:00]} Bf1 {[%emt 0:00:00]} 0-1

[Event "2nd Hersonissos Open 2018"]
[Site "Hersonissos"]
[Date "2018.06.23"]
[Round "8"]
[White "Kozyris, Ilias"]
[Black "Aggeletos, Marios"]
[Result "0-1"]
[ECO "B97"]
[WhiteElo "1570"]
[BlackElo "1769"]
[Annotator "NA"]
[PlyCount "74"]
[EventDate "2018.06.23"]
[EventType "swiss"]
[EventCountry "GRE"]
[SourceTitle "playchess.com"]
[Source "ChessBase"]
[SourceQuality "1"]
[TimeControl "5400+30"]

1. e4 {[%emt 0:00:00]} c5 {[%emt 0:00:04]} 2. Nf3 {[%emt 0:00:00]} d6 {[%emt 0:00:05]} 3. d4 {[%emt 0:00:00]} cxd4 {[%emt 0:00:07]} 4. Nxd4 {[%emt 0:00:00]} Nf6 {[%emt 0:00:02]} 5. Nc3 {[%emt 0:00:05]} a6 {[%emt 0:00:02]} 6. Bg5 {[%emt 0:00:33]} e6 {[%emt 0:00:04]} 7. f4 {[%emt 0:00:11]} Qb6 {[%emt 0:00:12]} 8. Nb3 {[%emt 0:10:53]} Nbd7 {[%emt 0:04:17]} 9. Qf3 {[%emt 0:04:12]} Be7 {[%emt 0:04:53]} 10. g4 {[%emt 0:00:59]} h6 {[%emt 0:02:37]} 11. Bxf6 {[%emt 0:01:19]} Bxf6 {[%emt 0:03:16]} 12. O-O-O {[%emt 0:00:58]} g5 {[%emt 0:02:08]} 13. fxg5 {[%emt 0:11:41]} Bxg5+ {[%emt 0:00:35]} 14. Kb1 {[%emt 0:00:08]} Ne5 {[%emt 0:00:15]} 15. Qg3 {[%emt 0:00:02]} Bd7 {[%emt 0:05:28]} 16. h4 {[%emt 0:03:36]} Be7 {[%emt 0:00:48]} 17. Be2 {[%emt 0:02:15]} O-O-O {[%emt 0:01:50]} 18. Rd4 {[%emt 0:04:51]} Kb8 {[%emt 0:18:27]} 19. Rhd1 {[%emt 0:04:54]} Rhg8 {[%emt 0:07:42]} 20. a3 Qc7 {[%emt 0:06:42]} 21. Na4 {[%emt 0:31:09]} f6 {[%emt 0:11:31]} 22. Na1 {[%emt 0:08:43]} Nc6 {[%emt 0:17:40]} 23. R4d3 {[%emt 0:02:25]} f5 {[%emt 0:03:49]} 24. exf5 {[%emt 0:01:33]} exf5 {[%emt 0:00:32]} 25. Qe3 {[%emt 0:00:07]} Bxh4 {[%emt 0:02:34]} 26. Rxd6 {[%emt 0:01:11]} Bg5 {[%emt 0:00:23]} 27. Qb3 {[%emt 0:00:59]} Na5 {[%emt 0:03:09]} 28. Qb6 {[%emt 0:08:02]} Bxa4 {[%emt 0:00:58]} 29. Rxd8+ {[%emt 0:02:32]} Rxd8 {[%emt 0:00:15]} 30. Rxd8+ {[%emt 0:00:22]} Qxd8 {[%emt 0:00:07]} 31. Qb4 {[%emt 0:00:36]} Bc6 {[%emt 0:02:43]} 32. gxf5 {[%emt 0:00:31]} Bf6 {[%emt 0:01:04]} 33. Qf4+ {[%emt 0:00:40]} Ka7 {[%emt 0:00:31]} 34. Qxh6 {[%emt 0:00:56]} Qd4 {[%emt 0:00:07]} 35. c3 {[%emt 0:00:26]} Be4+ {[%emt 0:01:05]} 36. Kc1 {[%emt 0:00:01]} Qg1+ {[%emt 0:00:14]} 37. Kd2 {[%emt 0:00:31]} Bg5+ {[%emt 0:00:08]} 0-1

[Event "2nd Hersonissos Open 2018"]
[Site "Hersonissos"]
[Date "2018.06.23"]
[Round "8"]
[White "Ergazaki, Eirini"]
[Black "Pliev, Vladimir"]
[Result "0-1"]
[ECO "B26"]
[WhiteElo "1348"]
[BlackElo "1909"]
[Annotator "NA"]
[PlyCount "60"]
[EventDate "2018.06.23"]
[EventType "swiss"]
[EventCountry "GRE"]
[SourceTitle "playchess.com"]
[Source "ChessBase"]
[SourceQuality "1"]
[TimeControl "5400+30"]

1. e4 {[%emt 0:00:00]} c5 {[%emt 0:00:04]} 2. Nc3 {[%emt 0:00:00]} Nc6 {[%emt 0:00:07]} 3. g3 {[%emt 0:00:00]} g6 {[%emt 0:00:24]} 4. Bg2 {[%emt 0:00:00]} Bg7 {[%emt 0:00:04]} 5. d3 {[%emt 0:00:04]} d6 {[%emt 0:00:09]} 6. Be3 {[%emt 0:00:23]} Nd4 {[%emt 0:00:24]} 7. Qd2 {[%emt 0:01:41]} e5 {[%emt 0:01:48]} 8. Nd1 {[%emt 0:01:04]} Be6 {[%emt 0:02:49]} 9. c3 {[%emt 0:02:14]} Nc6 {[%emt 0:00:11]} 10. Ne2 {[%emt 0:02:19]} Qd7 {[%emt 0:04:03]} 11. O-O {[%emt 0:02:01]} Nge7 {[%emt 0:00:49]} 12. f4 {[%emt 0:02:01]} O-O {[%emt 0:01:06]} 13. Nf2 {[%emt 0:04:26]} f5 {[%emt 0:03:36]} 14. Rfd1 {[%emt 0:12:20]} Rad8 {[%emt 0:03:41]} 15. d4 {[%emt 0:04:18]} cxd4 {[%emt 0:00:14]} 16. cxd4 {[%emt 0:00:17]} fxe4 {[%emt 0:02:20]} 17. Bxe4 {[%emt 0:02:37]} d5 {[%emt 0:00:26]} 18. Bg2 {[%emt 0:01:24]} e4 {[%emt 0:00:14]} 19. Qc3 {[%emt 0:06:38]} Rc8 {[%emt 0:00:46]} 20. Qe1 {[%emt 0:02:33]} Nf5 {[%emt 0:00:15]} 21. Bc1 {[%emt 0:03:27]} Nfxd4 {[%emt 0:00:40]} 22. Nxd4 {[%emt 0:02:16]} Nxd4 {[%emt 0:00:08]} 23. Qf1 {[%emt 0:00:38]} Qb5 {[%emt 0:02:58]} 24. Qxb5 {[%emt 0:06:17]} Nxb5 {[%emt 0:00:06]} 25. Rb1 {[%emt 0:00:33]} Rc2 {[%emt 0:01:19]} 26. Bf1 {[%emt 0:03:06]} Nd4 {[%emt 0:02:02]} 27. a4 {[%emt 0:06:49]} Nf3+ {[%emt 0:00:59]} 28. Kg2 {[%emt 0:00:26]} d4 {[%emt 0:01:24]} 29. b3 {[%emt 0:04:54]} e3 {[%emt 0:00:26]} 30. Kxf3 {[%emt 0:00:21]} Rxf2+ {[%emt 0:00:07]} 0-1

[Event "2nd Hersonissos Open 2018"]
[Site "Hersonissos"]
[Date "2018.06.24"]
[Round "9"]
[White "Risting, Eivind Olav"]
[Black "Hommeles, Theo"]
[Result "1/2-1/2"]
[ECO "D45"]
[WhiteElo "2301"]
[BlackElo "2361"]
[Annotator "NA"]
[PlyCount "28"]
[EventDate "2018.06.23"]
[EventType "swiss"]
[EventCountry "GRE"]
[SourceTitle "playchess.com"]
[Source "ChessBase"]
[SourceQuality "1"]
[TimeControl "5400+30"]

{[%evp 8,22,29,24,15,12,32767,5,32767,32767,32767,11,36,32767,32767,8,7]} 1. d4 {[%emt 0:00:42]} d5 {[%emt 0:00:12]} 2. c4 {[%emt 0:00:17]} c6 {[%emt 0:00:06]} 3. Nf3 {[%emt 0:00:10]} Nf6 {[%emt 0:00:10]} 4. Nc3 {[%emt 0:00:23]} e6 {[%emt 0:00:10]} 5. e3 {[%emt 0:00:24]} Nbd7 {[%emt 0:00:14]} 6. Qc2 {[%emt 0:00:37]} Bd6 {[%emt 0:00:20]} 7. Bd3 {[%emt 0:00:12] LiveBook: 3645 Games} O-O {[%emt 0:01:46]} 8. O-O {[%emt 0:00:21]} h6 {[%emt 0:01:40]} 9. b3 {[%emt 0:07:13]} a6 {[%emt 0:09:58]} 10. Rd1 {[%emt 0:02:16]} e5 {[%emt 0:05:37]} 11. dxe5 {[%emt 0:21:54]} Nxe5 $11 {[%emt 0:03:05]} 12. Be2 {[%emt 0:01:48]} Bg4 {[%emt 0:08:57]} 13. Nxe5 {[%emt 0:07:10]} Bxe2 {[%emt 0:01:20]} 14. Qxe2 {[%emt 0:01:19]} Bxe5 {[%emt 0:00:18]} 1/2-1/2

[Event "2nd Hersonissos Open 2018"]
[Site "Hersonissos"]
[Date "2018.06.24"]
[Round "9"]
[White "Ranaldi, Lucas"]
[Black "Maris, Ioannis"]
[Result "1-0"]
[ECO "A04"]
[WhiteElo "2283"]
[BlackElo "1915"]
[Annotator "NA"]
[PlyCount "47"]
[EventDate "2018.06.23"]
[EventType "swiss"]
[EventCountry "GRE"]
[SourceTitle "playchess.com"]
[Source "ChessBase"]
[SourceQuality "1"]
[TimeControl "5400+30"]

1. Nf3 {[%emt 0:01:00]} c5 {[%emt 0:00:26]} 2. c4 {[%emt 0:00:13]} Nc6 {[%emt 0:01:51]} 3. Nc3 {[%emt 0:00:09]} g6 {[%emt 0:00:55]} 4. e3 {[%emt 0:00:08]} Bg7 {[%emt 0:00:30]} 5. d4 {[%emt 0:00:10]} cxd4 {[%emt 0:03:04]} 6. exd4 {[%emt 0:00:02]} d6 {[%emt 0:00:14]} 7. d5 {[%emt 0:00:13]} Ne5 {[%emt 0:00:22]} 8. Nd4 {[%emt 0:00:11] A35: Symmetrical English: 2 Nc3 Nc6 3 Nf3} (8. Nxe5 Bxe5 9. Bd3 Bg7 10. O-O Nf6 11. Re1 O-O 12. h3 a6 13. Bg5 Re8 14. Qd2 Bd7 15. a4 Qa5 16. Qc2 Rac8 {0-1 (60) Pantsulaia,L (2605)-Zwardon,V (2412) chess.com INT 2018}) 8... a6 {[%emt 0:00:21]} 9. Nc2 $146 {[%emt 0:12:53]} ({Predecessor:} 9. f4 Nd7 10. Be3 e5 11. dxe6 Ndf6 12. exf7+ Kxf7 13. Qb3 Ne7 14. O-O-O Re8 15. Nf3 Kf8 {0-1 (36) Bene,Z (2084)-Kalanyos,F (2013) Hungary 2004}) 9... Nf6 {[%emt 0:00:33]} 10. Be2 {[%emt 0:00:24]} O-O {[%emt 0:00:49]} 11. O-O {[%emt 0:00:28]} Qc7 {[%emt 0:01:56]} 12. Ne3 {[%emt 0:00:44]} Rb8 {[%emt 0:06:40]} 13. Bd2 {[%emt 0:01:21]} Qb6 {[%emt 0:06:50]} 14. b3 {[%emt 0:01:32]} Qd4 {[%emt 0:02:10]} 15. Nc2 {[%emt 0:04:17]} Qh4 {[%emt 0:01:37]} 16. f4 {[%emt 0:04:53]} Ned7 {[%emt 0:23:29] [#]} 17. Be1 $1 {[%emt 0:08:59]} Qh6 {[%emt 0:00:13]} 18. g4 {[%emt 0:00:22]} Qh3 {[%emt 0:03:07] [#]} 19. g5 $1 {[%emt 0:00:58]} Nc5 $18 {[%emt 0:03:55]} 20. gxf6 {[%emt 0:01:42]} Bxf6 {[%emt 0:00:02]} 21. Rf3 {[%emt 0:01:13]} Qg4+ {[%emt 0:01:13]} 22. Kh1 {[%emt 0:00:58]} b5 {[%emt 0:05:07]} 23. b4 {[%emt 0:03:08]} Bxc3 {[%emt 0:01:53]} 24. Rxc3 {[%emt 0:02:16]} 1-0